[Event "34th MPL National U14G-ch 2022"]
[Site "Ahmedabad"]
[Date "2022.05.12"]
[Round "7.4"]
[White "Falak Joni Naik"]
[Black "Anupam M Sreekumar"]
[Result "0-1"]
[ECO "D05"]
[WhiteElo "1349"]
[BlackElo "1673"]
[Annotator "NA RC COMBH"]
[PlyCount "74"]
[EventDate "2022.05.09"]
[EventType "swiss"]
[EventCountry "IND"]
[SourceTitle "playchess.com"]
[Source "ChessBase"]
[SourceQuality "1"]
[TimeControl "5400+30"]

1. d4 {[%emt 0:02:39]} d5 {[%emt 0:00:13]} 2. Nf3 {[%emt 0:00:33]} Nf6 {[%emt 0:00:03]} 3. e3 {[%emt 0:00:06]} e6 {[%emt 0:00:19]} 4. Bd3 {[%emt 0:00:06]} Be7 {[%emt 0:01:13]} 5. O-O {[%emt 0:00:09]} O-O {[%emt 0:01:06]} 6. b3 {[%emt 0:00:06]} c5 {[%emt 0:00:58]} 7. Bb2 {[%emt 0:00:21]} Nc6 {[%emt 0:00:16]} 8. a3 {[%emt 0:00:09]} b6 {[%emt 0:01:20]} 9. Nbd2 {[%emt 0:00:09]} Bb7 {[%emt 0:00:28]} 10. Ne5 {[%emt 0:00:11]} Nxe5 {[%emt 0:03:31]} 11. dxe5 {[%emt 0:00:15]} Ne4 {[%emt 0:00:18]} 12. f4 {[%emt 0:02:09]} Rc8 {[%emt 0:07:03]} 13. Rf3 {[%emt 0:01:41]} f5 {[%emt 0:10:25]} 14. Rh3 {[%emt 0:02:29]} Nxd2 {[%emt 0:02:11]} 15. Qh5 {[%emt 0:05:21]} c4 {[%emt 0:09:20]} 16. Be2 {[%emt 0:00:45]} h6 {[%emt 0:01:35]} 17. Qg6 {[%emt 0:00:29]} Qe8 {[%emt 0:01:10]} 18. Qxe6+ {[%emt 0:00:23]} Qf7 {[%emt 0:00:07]} 19. Qxf7+ {[%emt 0:03:05]} Rxf7 {[%emt 0:02:28]} 20. Rd1 {[%emt 0:05:04]} c3 {[%emt 0:03:52]} 21. Bxc3 {[%emt 0:01:52]} Rxc3 {[%emt 0:00:13]} 22. Rxd2 {[%emt 0:00:02]} Bxa3 {[%emt 0:01:03]} 23. g4 {[%emt 0:00:46]} Bc5 {[%emt 0:03:10]} 24. Rd3 {[%emt 0:04:46]} Rxc2 {[%emt 0:01:35]} 25. Bf3 {[%emt 0:03:16]} Ba6 {[%emt 0:03:01]} 26. e6 {[%emt 0:03:58]} Re7 {[%emt 0:00:36]} 27. Rxd5 {[%emt 0:01:26]} Bxe3+ {[%emt 0:00:09]} 28. Kh1 {[%emt 0:00:07]} Rc1+ {[%emt 0:00:13]} 29. Bd1 {[%emt 0:10:32]} Rxd1+ {[%emt 0:00:48]} 30. Kg2 {[%emt 0:00:42]} Bf1+ {[%emt 0:01:00]} 31. Kf3 {[%emt 0:00:15]} Rxd5 {[%emt 0:00:05]} 32. Rg3 {[%emt 0:00:17]} Rxe6 {[%emt 0:00:17]} 33. gxf5 {[%emt 0:00:11]} Rxf5 {[%emt 0:00:07]} 34. Rg4 {[%emt 0:00:20]} h5 {[%emt 0:00:22]} 35. Rh4 {[%emt 0:00:14]} g5 {[%emt 0:00:08]} 36. Rxh5 {[%emt 0:00:12]} Rxf4+ {[%emt 0:00:07]} 37. Kg3 {[%emt 0:00:12]} Bf2# {[%emt 0:00:06]} 0-1

[Event "34th MPL National U14G-ch 2022"]
[Site "Ahmedabad"]
[Date "2022.05.12"]
[Round "7.5"]
[White "Shubhi Gupta"]
[Black "Jeevika S"]
[Result "0-1"]
[ECO "D66"]
[WhiteElo "1613"]
[BlackElo "1433"]
[Annotator "NA RC COMBH"]
[PlyCount "156"]
[EventDate "2022.05.09"]
[EventType "swiss"]
[EventCountry "IND"]
[SourceTitle "playchess.com"]
[Source "ChessBase"]
[SourceQuality "1"]
[TimeControl "5400+30"]

1. d4 {[%emt 0:00:12]} d5 {[%emt 0:00:14]} 2. c4 {[%emt 0:00:05]} e6 {[%emt 0:00:04]} 3. Nc3 {[%emt 0:00:05]} Nf6 {[%emt 0:00:05]} 4. Bg5 {[%emt 0:00:04]} Be7 {[%emt 0:00:09]} 5. e3 {[%emt 0:00:04]} O-O {[%emt 0:00:34]} 6. Nf3 {[%emt 0:00:10]} Nbd7 {[%emt 0:01:20]} 7. Rc1 {[%emt 0:00:25]} c6 {[%emt 0:00:22]} 8. Bd3 {[%emt 0:00:37]} h6 {[%emt 0:07:55]} 9. Bh4 {[%emt 0:00:29]} Ne8 {[%emt 0:01:41]} 10. Bg3 {[%emt 0:02:31]} Bd6 {[%emt 0:01:12]} 11. O-O {[%emt 0:01:23]} Bxg3 {[%emt 0:01:17]} 12. hxg3 {[%emt 0:00:15]} f5 {[%emt 0:03:24]} 13. Ne2 {[%emt 0:03:05]} Nd6 {[%emt 0:08:05]} 14. Nf4 {[%emt 0:02:08]} Re8 {[%emt 0:04:40]} 15. Ng6 {[%emt 0:04:31]} Qf6 {[%emt 0:04:15]} 16. Nfe5 {[%emt 0:02:12]} Nf7 {[%emt 0:06:47]} 17. f4 {[%emt 0:01:33]} Ndxe5 {[%emt 0:01:43]} 18. Nxe5 {[%emt 0:00:07]} Nxe5 {[%emt 0:00:07]} 19. fxe5 {[%emt 0:00:09]} Qg5 {[%emt 0:01:17]} 20. Qf3 {[%emt 0:01:01]} Bd7 {[%emt 0:01:09]} 21. Rc3 {[%emt 0:02:16]} Rac8 {[%emt 0:05:13]} 22. cxd5 {[%emt 0:03:45]} cxd5 {[%emt 0:00:23]} 23. Rfc1 {[%emt 0:00:49]} Rxc3 {[%emt 0:03:24]} 24. Rxc3 {[%emt 0:00:28]} Rc8 {[%emt 0:00:11]} 25. Kf2 {[%emt 0:00:44]} h5 {[%emt 0:10:38]} 26. Qd1 {[%emt 0:08:28]} h4 {[%emt 0:07:28]} 27. gxh4 {[%emt 0:04:44]} Qxh4+ {[%emt 0:00:08]} 28. Kg1 {[%emt 0:00:20]} f4 {[%emt 0:07:58]} 29. Rxc8+ {[%emt 0:05:02]} Bxc8 {[%emt 0:00:05]} 30. Qc1 {[%emt 0:00:30]} Bd7 {[%emt 0:01:05]} 31. exf4 {[%emt 0:00:37]} g5 {[%emt 0:00:33]} 32. Qc7 {[%emt 0:02:45]} Qe1+ {[%emt 0:01:58]} 33. Bf1 {[%emt 0:00:21]} Qe3+ {[%emt 0:00:28]} 34. Kh1 {[%emt 0:00:18]} Qxf4 {[%emt 0:00:30]} 35. Qd8+ {[%emt 0:00:11]} Qf8 {[%emt 0:00:05]} 36. Qxg5+ {[%emt 0:00:13]} Qg7 {[%emt 0:01:22]} 37. Qd8+ {[%emt 0:02:11]} Qf8 {[%emt 0:00:39]} 38. Qxf8+ {[%emt 0:00:13]} Kxf8 {[%emt 0:00:03]} 39. Kh2 {[%emt 0:00:10]} Kg7 {[%emt 0:00:27]} 40. Kg3 {[%emt 0:00:20]} Kh6 {[%emt 0:00:36]} 41. Kh4 {[%emt 0:00:26]} Kg6 {[%emt 0:00:10]} 42. g4 {[%emt 0:00:22]} a6 {[%emt 0:01:28]} 43. Bd3+ {[%emt 0:02:19]} Kh6 {[%emt 0:00:50]} 44. b4 {[%emt 0:00:42]} b5 {[%emt 0:01:21]} 45. Be2 {[%emt 0:05:10]} Kg6 {[%emt 0:01:40]} 46. Bd1 {[%emt 0:02:57]} Bc6 {[%emt 0:02:06]} 47. Bc2+ {[%emt 0:01:43]} Kh6 {[%emt 0:00:25]} 48. Bf5 {[%emt 0:04:53]} exf5 {[%emt 0:05:14]} 49. gxf5 {[%emt 0:00:05]} Kg7 {[%emt 0:00:09]} 50. Kg5 {[%emt 0:00:59]} Kf7 {[%emt 0:01:18]} 51. Kh6 {[%emt 0:05:05]} Be8 {[%emt 0:00:47]} 52. Kg5 {[%emt 0:02:02]} Bc6 {[%emt 0:00:49]} 53. e6+ {[%emt 0:01:21]} Ke7 {[%emt 0:00:42]} 54. Kg6 {[%emt 0:00:51]} Be8+ {[%emt 0:00:40]} 55. Kg7 {[%emt 0:00:13]} Bh5 {[%emt 0:00:09]} 56. Kh6 {[%emt 0:00:08]} Be8 {[%emt 0:02:53]} 57. Kg7 {[%emt 0:00:36]} Bh5 {[%emt 0:00:05]} 58. a3 {[%emt 0:00:04]} Be8 {[%emt 0:00:15]} 59. Kg8 {[%emt 0:02:30]} Kf6 {[%emt 0:00:09]} 60. Kf8 {[%emt 0:00:30]} Bh5 {[%emt 0:00:20]} 61. e7 {[%emt 0:00:11]} Kxf5 {[%emt 0:00:32]} 62. e8=Q {[%emt 0:00:18]} Bxe8 {[%emt 0:00:03]} 63. Kxe8 {[%emt 0:00:06]} Ke4 {[%emt 0:00:02]} 64. Kd7 {[%emt 0:00:06]} Kxd4 {[%emt 0:00:03]} 65. Kc6 {[%emt 0:00:05]} Kc4 {[%emt 0:00:08]} 66. Kb6 {[%emt 0:00:03]} d4 {[%emt 0:00:09]} 67. Kxa6 {[%emt 0:00:04]} d3 {[%emt 0:00:03]} 68. a4 {[%emt 0:00:19]} bxa4 {[%emt 0:00:13]} 69. b5 {[%emt 0:00:04]} d2 {[%emt 0:00:04]} 70. b6 {[%emt 0:00:03]} d1=Q {[%emt 0:00:05]} 71. b7 {[%emt 0:00:02]} Qd6+ {[%emt 0:00:14]} 72. Ka7 {[%emt 0:00:03]} Qc7 {[%emt 0:00:12]} 73. Ka8 {[%emt 0:00:11]} Qa5+ {[%emt 0:00:09]} 74. Kb8 {[%emt 0:00:05]} Kc5 {[%emt 0:00:23]} 75. Kc8 {[%emt 0:00:04]} Qa6 {[%emt 0:00:14]} 76. Kc7 {[%emt 0:00:04]} Qa7 {[%emt 0:00:05]} 77. Kc8 {[%emt 0:00:04]} Kc6 {[%emt 0:00:19]} 78. b8=Q {[%emt 0:00:18]} Qd7# {[%emt 0:00:05]} 0-1

[Event "34th MPL National U14G-ch 2022"]
[Site "Ahmedabad"]
[Date "2022.05.12"]
[Round "7.6"]
[White "Sanikommu Manasvi"]
[Black "Pragnya H G"]
[Result "1/2-1/2"]
[ECO "B56"]
[WhiteElo "1399"]
[BlackElo "1605"]
[Annotator "NA RC COMBH"]
[PlyCount "67"]
[EventDate "2022.05.09"]
[EventType "swiss"]
[EventCountry "IND"]
[SourceTitle "playchess.com"]
[Source "ChessBase"]
[SourceQuality "1"]
[TimeControl "5400+30"]

1. e4 {[%emt 0:00:03]} c5 {[%emt 0:01:53]} 2. Nf3 {[%emt 0:00:14]} d6 {[%emt 0:00:04]} 3. d4 {[%emt 0:00:15]} cxd4 {[%emt 0:00:05]} 4. Nxd4 {[%emt 0:00:24]} Nf6 {[%emt 0:00:06]} 5. Nc3 {[%emt 0:01:08]} Nc6 {[%emt 0:00:05]} 6. Be3 {[%emt 0:00:31]} Ng4 {[%emt 0:04:20]} 7. Bc1 {[%emt 0:03:34]} Qb6 {[%emt 0:03:10]} 8. Bb5 {[%emt 0:09:36]} Bd7 {[%emt 0:15:09]} 9. Bxc6 {[%emt 0:06:16]} bxc6 {[%emt 0:00:52]} 10. O-O {[%emt 0:03:17]} g6 {[%emt 0:03:07]} 11. h3 {[%emt 0:04:08]} Bg7 {[%emt 0:05:08]} 12. Nb3 {[%emt 0:03:48]} Ne5 {[%emt 0:02:20]} 13. Be3 {[%emt 0:02:11]} Qc7 {[%emt 0:00:35]} 14. Qe2 {[%emt 0:01:27]} c5 {[%emt 0:13:14]} 15. Nd5 {[%emt 0:06:57]} Qd8 {[%emt 0:01:58]} 16. f4 {[%emt 0:06:39]} Nc6 {[%emt 0:01:45]} 17. Rad1 {[%emt 0:10:22]} O-O {[%emt 0:06:11]} 18. f5 {[%emt 0:06:37]} Ne5 {[%emt 0:05:24]} 19. Bd2 {[%emt 0:04:23]} Nc6 {[%emt 0:02:12]} 20. Bc3 {[%emt 0:02:32]} Bxc3 {[%emt 0:02:27]} 21. bxc3 {[%emt 0:01:30]} Ne5 {[%emt 0:02:02]} 22. f6 {[%emt 0:00:57]} exf6 {[%emt 0:01:28]} 23. Nxf6+ {[%emt 0:00:17]} Kg7 {[%emt 0:00:04]} 24. Nxd7 {[%emt 0:04:25]} Qxd7 {[%emt 0:00:47]} 25. Qf2 {[%emt 0:01:48]} Qe6 {[%emt 0:01:04]} 26. Qd2 {[%emt 0:02:13]} Nc4 {[%emt 0:02:01]} 27. Qe2 {[%emt 0:00:44]} Rae8 {[%emt 0:00:37]} 28. Rf4 {[%emt 0:00:56]} f5 {[%emt 0:01:24]} 29. Re1 {[%emt 0:00:49]} g5 {[%emt 0:25:28]} 30. Rff1 {[%emt 0:01:55]} Qxe4 {[%emt 0:00:00]} 31. Qh5 {[%emt 0:00:57]} Qxe1 {[%emt 0:00:00]} 32. Qxg5+ {[%emt 0:00:46]} Kh8 {[%emt 0:00:00]} 33. Rxe1 {[%emt 0:00:11]} Rxe1+ {[%emt 0:00:00]} 34. Kf2 {[%emt 0:00:38]} 1/2-1/2

[Event "34th MPL National U14G-ch 2022"]
[Site "Ahmedabad"]
[Date "2022.05.12"]
[Round "7.7"]
[White "Sachi Jain"]
[Black "Debapriya Manna"]
[Result "0-1"]
[ECO "B06"]
[WhiteElo "1768"]
[BlackElo "1384"]
[Annotator "NA RC COMBH"]
[PlyCount "124"]
[EventDate "2022.05.09"]
[EventType "swiss"]
[EventCountry "IND"]
[SourceTitle "playchess.com"]
[Source "ChessBase"]
[SourceQuality "1"]
[TimeControl "5400+30"]

1. e4 {[%emt 0:00:28]} c5 {[%emt 0:01:14]} 2. Nf3 {[%emt 0:00:26]} g6 {[%emt 0:00:15]} 3. d4 {[%emt 0:01:21]} cxd4 {[%emt 0:00:52]} 4. Nxd4 {[%emt 0:00:24]} Bg7 {[%emt 0:00:55]} 5. f4 {[%emt 0:00:32]} Nc6 {[%emt 0:04:55]} 6. Nf3 {[%emt 0:00:48]} d6 {[%emt 0:04:05]} 7. Bd3 {[%emt 0:01:25]} Nf6 {[%emt 0:02:24]} 8. O-O {[%emt 0:04:31]} Qb6+ {[%emt 0:08:10]} 9. Kh1 {[%emt 0:00:30]} O-O {[%emt 0:03:27]} 10. Nc3 {[%emt 0:02:37]} Bg4 {[%emt 0:03:09]} 11. Qe1 {[%emt 0:02:33]} Bxf3 {[%emt 0:06:40]} 12. Rxf3 {[%emt 0:00:17]} Nd4 {[%emt 0:02:58]} 13. Rf1 {[%emt 0:00:11]} Nd7 {[%emt 0:07:02]} 14. Qh4 {[%emt 0:02:42]} Bf6 {[%emt 0:07:19]} 15. Qh3 {[%emt 0:01:37]} Qd8 {[%emt 0:03:03]} 16. f5 {[%emt 0:04:29]} e6 {[%emt 0:04:38]} 17. fxe6 {[%emt 0:06:09]} fxe6 {[%emt 0:00:21]} 18. Be3 {[%emt 0:00:05]} Qe7 {[%emt 0:03:06]} 19. Bc4 {[%emt 0:01:46]} Nb6 {[%emt 0:02:37]} 20. Bd3 {[%emt 0:06:20]} Rf7 {[%emt 0:04:42]} 21. Bh6 {[%emt 0:07:13]} Bg7 {[%emt 0:02:44]} 22. Rxf7 {[%emt 0:01:48]} Qxf7 {[%emt 0:00:20]} 23. Rf1 {[%emt 0:01:47]} Qe7 {[%emt 0:01:07]} 24. Bxg7 {[%emt 0:04:16]} Kxg7 {[%emt 0:00:42]} 25. Nd1 {[%emt 0:00:37]} e5 {[%emt 0:04:02]} 26. Ne3 {[%emt 0:02:04]} Rf8 {[%emt 0:00:33]} 27. Rxf8 {[%emt 0:04:21]} Qxf8 {[%emt 0:00:17]} 28. Qh4 {[%emt 0:00:51]} Qf6 {[%emt 0:03:05]} 29. Qg3 {[%emt 0:02:38]} Qf4 {[%emt 0:02:14]} 30. Nf5+ {[%emt 0:09:04]} Nxf5 {[%emt 0:00:17]} 31. Qxf4 {[%emt 0:00:06]} exf4 {[%emt 0:00:08]} 32. exf5 {[%emt 0:00:02]} g5 {[%emt 0:00:34]} 33. Kg1 {[%emt 0:00:34]} Kf6 {[%emt 0:00:22]} 34. Kf2 {[%emt 0:00:08]} g4 {[%emt 0:01:41]} 35. b3 {[%emt 0:05:06]} Nc8 {[%emt 0:00:32]} 36. Be4 {[%emt 0:02:38]} b6 {[%emt 0:00:39]} 37. h3 {[%emt 0:01:47]} h5 {[%emt 0:00:25]} 38. Bc6 {[%emt 0:01:26]} Ne7 {[%emt 0:01:54]} 39. Be8 {[%emt 0:00:05]} Nxf5 {[%emt 0:01:03]} 40. Bxh5 {[%emt 0:02:14]} g3+ {[%emt 0:00:09]} 41. Kg1 {[%emt 0:03:10]} Ke5 {[%emt 0:00:59]} 42. Bg6 {[%emt 0:01:14]} Ne3 {[%emt 0:00:55]} 43. Bd3 {[%emt 0:02:23]} a5 {[%emt 0:03:00]} 44. a4 {[%emt 0:00:51]} d5 {[%emt 0:00:59]} 45. Bg6 {[%emt 0:01:00]} Kf6 {[%emt 0:00:20]} 46. Bh7 {[%emt 0:01:44]} Kg5 {[%emt 0:00:13]} 47. Bd3 {[%emt 0:01:32]} Kh4 {[%emt 0:00:11]} 48. Bg6 {[%emt 0:01:03]} f3 {[%emt 0:00:16]} 49. gxf3 {[%emt 0:00:08]} Kxh3 {[%emt 0:00:06]} 50. f4 {[%emt 0:01:34]} Kg4 {[%emt 0:00:18]} 51. c3 {[%emt 0:02:42]} Kxf4 {[%emt 0:00:08]} 52. b4 {[%emt 0:00:02]} Nd1 {[%emt 0:00:31]} 53. bxa5 {[%emt 0:00:12]} bxa5 {[%emt 0:00:05]} 54. Bf7 {[%emt 0:00:33]} Nxc3 {[%emt 0:00:07]} 55. Be8 {[%emt 0:00:03]} d4 {[%emt 0:00:10]} 56. Bg6 {[%emt 0:00:58]} Nxa4 {[%emt 0:00:07]} 57. Bc2 {[%emt 0:00:07]} Nc3 {[%emt 0:00:04]} 58. Kg2 {[%emt 0:00:04]} a4 {[%emt 0:00:05]} 59. Bd3 {[%emt 0:00:09]} a3 {[%emt 0:00:05]} 60. Bc4 {[%emt 0:00:03]} a2 {[%emt 0:00:06]} 61. Bxa2 {[%emt 0:00:07]} Nxa2 {[%emt 0:00:26]} 62. Kg1 {[%emt 0:00:08]} d3 {[%emt 0:00:03]} 0-1

[Event "34th MPL National U14G-ch 2022"]
[Site "Ahmedabad"]
[Date "2022.05.12"]
[Round "7.8"]
[White "Rout Yashita"]
[Black "Shriyana S Mallya"]
[Result "1/2-1/2"]
[ECO "C06"]
[WhiteElo "1718"]
[BlackElo "1353"]
[Annotator "NA RC COMBH"]
[PlyCount "147"]
[EventDate "2022.05.09"]
[EventType "swiss"]
[EventCountry "IND"]
[SourceTitle "playchess.com"]
[Source "ChessBase"]
[SourceQuality "1"]
[TimeControl "5400+30"]

1. e4 {[%emt 0:00:50]} e6 {[%emt 0:00:21]} 2. d4 {[%emt 0:00:35]} d5 {[%emt 0:00:08]} 3. Nd2 {[%emt 0:00:24]} Nf6 {[%emt 0:00:24]} 4. e5 {[%emt 0:00:40]} Nfd7 {[%emt 0:00:06]} 5. Bd3 {[%emt 0:00:31]} c5 {[%emt 0:00:20]} 6. c3 {[%emt 0:00:38]} Nc6 {[%emt 0:00:16]} 7. Ne2 {[%emt 0:00:37]} cxd4 {[%emt 0:00:21]} 8. cxd4 {[%emt 0:00:21]} f6 {[%emt 0:00:10]} 9. exf6 {[%emt 0:00:55]} Nxf6 {[%emt 0:00:09]} 10. Nf3 {[%emt 0:01:52]} Bd6 {[%emt 0:00:27]} 11. O-O {[%emt 0:02:10]} Qc7 {[%emt 0:00:34]} 12. Re1 {[%emt 0:04:50]} O-O {[%emt 0:02:37]} 13. Ng3 {[%emt 0:01:04]} h6 {[%emt 0:03:18]} 14. a3 {[%emt 0:05:13]} Bd7 {[%emt 0:02:13]} 15. Bd2 {[%emt 0:04:24]} Rac8 {[%emt 0:13:17]} 16. Rc1 {[%emt 0:02:34]} Qb6 {[%emt 0:01:11]} 17. Bc3 {[%emt 0:01:24]} Bf4 {[%emt 0:04:38]} 18. Rc2 {[%emt 0:03:07]} Na5 {[%emt 0:09:01]} 19. Bxa5 {[%emt 0:07:03]} Qxa5 {[%emt 0:00:58]} 20. Qe2 {[%emt 0:05:31]} Rxc2 {[%emt 0:17:32]} 21. Bxc2 {[%emt 0:00:36]} Rc8 {[%emt 0:02:12]} 22. Bd3 {[%emt 0:01:21]} a6 {[%emt 0:04:57]} 23. Ne5 {[%emt 0:13:14]} Qxe1+ {[%emt 0:04:18]} 24. Qxe1 {[%emt 0:00:59]} Rc1 {[%emt 0:00:05]} 25. Kf1 {[%emt 0:02:21]} Rxe1+ {[%emt 0:00:34]} 26. Kxe1 {[%emt 0:00:05]} Bc1 {[%emt 0:00:14]} 27. b3 {[%emt 0:01:18]} Bxa3 {[%emt 0:00:23]} 28. Ne2 {[%emt 0:00:47]} Kf8 {[%emt 0:03:16]} 29. Nf4 {[%emt 0:01:39]} Ke7 {[%emt 0:00:59]} 30. h4 {[%emt 0:02:31]} Bb2 {[%emt 0:02:45]} 31. Ne2 {[%emt 0:01:37]} Be8 {[%emt 0:01:26]} 32. Kd2 {[%emt 0:01:43]} Nd7 {[%emt 0:02:38]} 33. Nf3 {[%emt 0:00:38]} Ba3 {[%emt 0:01:19]} 34. g4 {[%emt 0:02:05]} Bd6 {[%emt 0:02:10]} 35. Bc2 {[%emt 0:04:49]} Nf6 {[%emt 0:03:27]} 36. g5 {[%emt 0:00:53]} Ng4 {[%emt 0:00:41]} 37. Ke1 {[%emt 0:00:31]} Bb4+ {[%emt 0:00:51]} 38. Kf1 {[%emt 0:00:19]} Bd6 {[%emt 0:02:33]} 39. Kg2 {[%emt 0:01:27]} b5 {[%emt 0:01:16]} 40. Nc3 {[%emt 0:01:01]} Kd8 {[%emt 0:05:08]} 41. Nd1 {[%emt 0:02:59]} Bd7 {[%emt 0:01:12]} 42. Ne1 {[%emt 0:02:23]} hxg5 {[%emt 0:04:57]} 43. hxg5 {[%emt 0:00:07]} Bf4 {[%emt 0:00:31]} 44. Kf3 {[%emt 0:01:53]} e5 {[%emt 0:00:29]} 45. Nd3 {[%emt 0:01:30]} Bxg5 {[%emt 0:00:59]} 46. dxe5 {[%emt 0:01:13]} Nh6 {[%emt 0:02:07]} 47. Nb4 {[%emt 0:02:39]} Nf7 {[%emt 0:00:29]} 48. Nxd5 {[%emt 0:01:05]} Nxe5+ {[%emt 0:00:06]} 49. Ke4 {[%emt 0:00:24]} Nc6 {[%emt 0:00:28]} 50. f4 {[%emt 0:01:36]} Bh4 {[%emt 0:00:46]} 51. N1e3 {[%emt 0:01:41]} g6 {[%emt 0:01:08]} 52. Kf3 {[%emt 0:01:18]} Nd4+ {[%emt 0:00:17]} 53. Kg2 {[%emt 0:00:45]} Nxc2 {[%emt 0:01:10]} 54. Nxc2 {[%emt 0:00:07]} Bc6 {[%emt 0:00:10]} 55. Nce3 {[%emt 0:00:36]} Bf6 {[%emt 0:00:56]} 56. Kg3 {[%emt 0:02:05]} Bd4 {[%emt 0:00:45]} 57. Nb4 {[%emt 0:01:14]} Bb7 {[%emt 0:00:27]} 58. Nec2 {[%emt 0:00:53]} Bc3 {[%emt 0:00:35]} 59. Na2 {[%emt 0:02:55]} Bd2 {[%emt 0:00:08]} 60. Nd4 {[%emt 0:00:51]} Be4 {[%emt 0:00:55]} 61. Kg4 {[%emt 0:01:23]} Bb1 {[%emt 0:00:39]} 62. Nb4 {[%emt 0:00:29]} Bc3 {[%emt 0:01:27]} 63. Ndc6+ {[%emt 0:00:30]} Kd7 {[%emt 0:01:10]} 64. Nb8+ {[%emt 0:00:38]} Kc7 {[%emt 0:00:29]} 65. N8xa6+ {[%emt 0:00:08]} Kb6 {[%emt 0:00:28]} 66. Nd5+ {[%emt 0:00:28]} Kxa6 {[%emt 0:00:04]} 67. Nxc3 {[%emt 0:00:06]} Bf5+ {[%emt 0:00:12]} 68. Kg5 {[%emt 0:01:18]} Ka5 {[%emt 0:00:00]} 69. Nd5 {[%emt 0:00:09]} Bc2 {[%emt 0:00:00]} 70. b4+ {[%emt 0:00:16]} Ka4 {[%emt 0:00:00]} 71. Kf6 {[%emt 0:00:19]} Bb3 {[%emt 0:00:19]} 72. Nc7 {[%emt 0:00:15]} Kxb4 {[%emt 0:00:12]} 73. Kxg6 {[%emt 0:00:29]} Bc2+ {[%emt 0:00:08]} 74. f5 {[%emt 0:00:30]} 1/2-1/2

[Event "34th MPL National U14G-ch 2022"]
[Site "Ahmedabad"]
[Date "2022.05.12"]
[Round "8.1"]
[White "Anupam M Sreekumar"]
[Black "Shreya G Hipparagi"]
[Result "1-0"]
[ECO "C54"]
[WhiteElo "1673"]
[BlackElo "1548"]
[Annotator "NA RC COMBH"]
[PlyCount "59"]
[EventDate "2022.05.09"]
[EventType "swiss"]
[EventCountry "IND"]
[SourceTitle "playchess.com"]
[Source "ChessBase"]
[SourceQuality "1"]
[TimeControl "5400+30"]

1. e4 {[%emt 0:00:14]} e5 {[%emt 0:00:28]} 2. Nf3 {[%emt 0:00:09]} Nc6 {[%emt 0:00:19]} 3. Bc4 {[%emt 0:00:09]} Bc5 {[%emt 0:00:34]} 4. c3 {[%emt 0:00:11]} Nf6 {[%emt 0:01:04]} 5. d3 {[%emt 0:00:11]} a6 {[%emt 0:00:26]} 6. O-O {[%emt 0:00:13]} d6 {[%emt 0:06:45]} 7. a4 {[%emt 0:00:36]} Ba7 {[%emt 0:00:37]} 8. Re1 {[%emt 0:00:29]} h6 {[%emt 0:03:45]} 9. Nbd2 {[%emt 0:00:57]} O-O {[%emt 0:01:25]} 10. h3 {[%emt 1:32:21]} Ne7 {[%emt 0:01:57]} 11. Nf1 {[%emt 0:00:00]} Ng6 {[%emt 0:01:40]} 12. b4 {[%emt 0:00:00]} b5 {[%emt 0:01:23]} 13. Bb3 {[%emt 0:00:00]} Bd7 {[%emt 0:01:19]} 14. d4 {[%emt 0:00:00]} Re8 {[%emt 0:03:15]} 15. Ng3 {[%emt 0:00:00]} c5 {[%emt 0:06:29]} 16. Nf5 {[%emt 0:00:00]} Bc6 {[%emt 0:16:34]} 17. bxc5 {[%emt 0:00:00]} dxc5 {[%emt 0:06:36]} 18. d5 {[%emt 0:00:00]} Bb7 {[%emt 0:01:19]} 19. axb5 {[%emt 0:00:00]} axb5 {[%emt 0:01:51]} 20. c4 {[%emt 0:00:00]} Qd7 {[%emt 0:03:03]} 21. Bb2 {[%emt 0:00:00]} Kh7 {[%emt 0:05:04]} 22. Qc2 {[%emt 0:00:00]} Qc7 {[%emt 0:05:14]} 23. cxb5 {[%emt 0:00:00]} Bb6 {[%emt 0:01:40]} 24. Qc4 {[%emt 0:00:00]} Nf4 {[%emt 0:03:01]} 25. Rxa8 {[%emt 0:00:00]} Bxa8 {[%emt 0:00:51]} 26. d6 {[%emt 0:00:00]} Qd7 {[%emt 0:00:35]} 27. Nxe5 {[%emt 0:00:00]} Qa7 {[%emt 0:02:09]} 28. Nc6 {[%emt 0:00:00]} Qd7 {[%emt 0:00:54]} 29. Bxf6 {[%emt 0:00:00]} gxf6 {[%emt 0:00:41]} 30. Qc1 {[%emt 0:00:00]} 1-0